Cogmind - Beta 17 @@@ ROGUE MODE // 2026.07.14 @ 21:20:42 Player: Hadza Result: Destroyed by G-34 Mercenary with Small Laser Performance ------------- Evolutions (0) 0 Regions Visited (1) 200 Robots Destroyed (24) 120 Value Destroyed (669) 669 Prototype IDs (2) 40 Alien Tech Used (0) 0 Bonus (0) 0 TOTAL SCORE: 1029 Bonus ------- None Cogmind --------- Core Integrity 0/250 Matter 262/300 Energy 248/250 System Corruption 0% Temperature Cool (6) Movement Treading (240) Ox1 Location -10/Materials Parts ------- > --- POWER (1) -------- Ion Engine > --- PROPULSION (2) --- Light Treads > --- UTILITY (2) ------ Large Storage Unit Targeting Computer > --- WEAPON (2) ------- Assault Rifle Assault Rifle > --- INVENTORY (15) --- Ion Engine Ion Engine Aluminum Leg Improved Heat Sink Large Storage Unit Hacking Suite Hacking Suite Medium Laser Light Cannon Light Cannon Peak State ------------ > --- POWER ------------ Ion Engine > --- PROPULSION ------- Aluminum Leg Aluminum Leg > --- UTILITY ---------- Heat Sink Large Storage Unit > --- WEAPON ----------- Light Cannon Light Cannon > --- INVENTORY -------- Ion Engine Improved Heat Sink Large Storage Unit Huge Storage Unit Hacking Suite Small Laser [Rating: 8] Favorites ----------- Power Ion Engine Engine Ion Engine Propulsion Light Treads Treads Light Treads Leg Aluminum Leg Utility Large Storage Unit Device Heat Sink Storage Large Storage Unit Processor Targeting Computer Weapon Assault Rifle Energy Gun Small Laser Ballistic Gun Assault Rifle Ballistic Cannon Light Cannon Build | -11 -10 ------- Run | Yrd Mat Slots Evolved . | . . Power . | . . Propulsion . | . . Utility . | . . Weapon . | . . Parts Attached 21 | 7 14 Power 4 | 2 2 Engine 4 | 2 2 Core . | . . Reactor . | . . Propulsion 5 | 2 3 Treads 3 | 2 1 Leg 2 | . 2 Wheel . | . . Hover . | . . Flight . | . . Utility 4 | 1 3 Device 1 | . 1 Storage 2 | 1 1 Processor 1 | . 1 Hackware . | . . Protection . | . . Artifact . | . . Weapon 8 | 2 6 Energy Gun 3 | 1 2 Energy Cannon . | . . Ballistic Gun 3 | 1 2 Ballistic Cannon 2 | . 2 Launcher . | . . Special Weapon . | . . Impact Weapon . | . . Slashing Weapon . | . . Piercing Weapon . | . . Special Melee Weapon . | . . Unidentified Prototypes . | . . Parts Lost 5 | . 5 Power 1 | . 1 Propulsion 2 | . 2 Utility . | . . Weapon 2 | . 2 Highest Loss Streak 2 | . 2 To Critical Strikes . | . . Average Backups 6 | 1 6 Power 1 | . 1 Propulsion . | . . Utility 2 | . 2 Weapon 1 | . 1 Tool/Special . | . . Unused Backups 9 | . 9 Power 2 | . 2 Propulsion . | . . Utility 6 | . 6 Weapon 1 | . 1 Tool/Special . | . . Average Slot Usage (%) 89 | . 89 Engine 13 | . 13 Treads 11 | . 11 Leg 7 | . 7 Device 7 | . 7 Storage 14 | . 14 Processor 6 | . 6 Energy Gun 5 | . 5 Ballistic Gun 14 | . 14 Ballistic Cannon 6 | . 6 Peak Build Rating 8 | 6 8 Average Rating 6 | 4 6 On Entrance 3 | . 6 Avg Prop Armor Cover (%) . | . . Naked Turns . | . . Heaviest Build 32 | 14 32 Greatest Support 40 | 40 40 Greatest Overweight (x) 10 | . 10 Average Overweight (x) . | . . Largest Inventory Capacity 15 | 8 15 Average Capacity 14 | 7 14 Most Carried 10 | 5 10 Average Carried 6 | 1 6 Final Capacity 15 | 8 15 Final Carried 10 | 1 10 Class Distribution -------------------- 100% | Mutant Dominant Class ---------------- Mutant | -10/Materials Resources | -11 -10 ----------- Run | Yrd Mat Matter Collected 743 | 156 587 Remotely . | . . Salvage Created 843 | . 843 Parts 40 | . 40 Haulers Intercepted 2 | . 2 Recyclers Shooed 1 | . 1 Parts Field Recycled . | . . Retrieved Matter . | . . Parts Self-Destructed . | . . Prevented . | . . Parts Restored . | . . Kills | -11 -10 ------- Run | Yrd Mat Combat Hostiles Destroyed 16 | . 16 Guns 12 | . 12 Cannons 4 | . 4 Classes Destroyed 6 | . 6 Worker 1 | . 1 Tunneler 1 | . 1 Hauler 2 | . 2 Operator 2 | . 2 Watcher 2 | . 2 Grunt 16 | . 16 Best Kill Streak 5 | . 5 Combat Bots Only 4 | . 4 Max Kills in Single Turn 1 | . 1 Gunslinging . | . . Exploded . | . . Melee . | . . Uniques/NPCs Destroyed . | . . Combat | -11 -10 -------- Run | Yrd Mat Hostile Shots Fired 113 | . 113 Missed 32 | . 32 Hits 81 | . 81 Projectile 81 | . 81 Critical Strikes 1 | . 1 Damage Taken 1070 | . 1070 Core 250 | . 250 Absorbed by Shields . | . . Core Remaining (%) 100 | 100 . Volleys Fired 91 | . 91 Largest 2 | . 2 Hottest 70 | . 70 Shots Fired 168 | . 168 Gun 139 | . 139 Cannon 29 | . 29 Launcher . | . . Special . | . . Kinetic 115 | . 115 Thermal 35 | . 35 Explosive . | . . Electromagnetic 18 | . 18 Robot Hit Streak 18 | . 18 Robot Miss Streak 8 | . 8 Penetration Max . | . . Secondary Targets 2 | . 2 Max Gunslinging Chain 1 | . 1 Shots Hit Robots 117 | . 117 Core Hits 46 | . 46 Critical Kills . | . . Critical Parts Destroyed . | . . Critical Strikes 3 | . 3 Blast 3 | . 3 Melee Attacks . | . . Impact . | . . Slashing . | . . Piercing . | . . Sneak Attacks . | . . Combat Hostiles . | . . Follow-up Attacks . | . . Damage Inflicted 1605 | . 1605 Guns 1250 | . 1250 Cannons 314 | . 314 Explosions . | . . Melee . | . . Ramming 41 | . 41 Kinetic 1142 | . 1142 Thermal 214 | . 214 Explosive . | . . Electromagnetic 208 | . 208 Impact . | . . Slashing . | . . Piercing . | . . Highest Corruption . | . . Average Corruption . | . . Corruption Purged . | . . Corruption Blocked . | . . Overload Shots . | . . Overflow Damage . | . . Projectiles . | . . Explosions . | . . Melee . | . . Knockbacks 3 | . 3 Impact . | . . Kinetic 3 | . 3 Secondary . | . . Self-Inflicted Damage . | . . Shots . | . . Rammed 4 | . 4 Targets Rammed 10 | . 10 Kicked 6 | . 6 Crushed . | . . Highest Temperature 27 | . 27 Average Temperature 8 | . 8 Received Heat Transfer 564 | . 564 Siege Activations . | . . Martial Activations . | . . Shielding Activations . | . . Robots Disrupted . | . . Combat Hostiles . | . . Robots Corrupted . | . . Combat Hostiles . | . . Parts Fried . | . . Impact Corruptions . | . . Robots Melted . | . . Combat Hostiles . | . . Parts Melted . | . . Heat Transferred 500 | . 500 Parts Sabotaged . | . . Parts Stolen . | . . Parts Stripped . | . . Power Chain Reactions . | . . Alert | -11 -10 ------- Run | Yrd Mat Maximum Alert Level . | . . Low Security (%) 100 | 100 100 Level 1 . | . . Level 2 . | . . Level 3 . | . . Level 4 . | . . Level 5 . | . . High Security . | . . Max Security . | . . Peak Influence 97 | . 97 Initial . | . . Average 11 | . 11 Influence Increases 474 | . 474 Destroy 0b10 Robot/C 320 | . 320 Destroy 0b10 Robot/NC 40 | . 40 Destroy Leader 78 | . 78 Successful Hack 5 | . 5 Disable Machine 15 | . 15 Destroy Structure 1 | . 1 Lose Combat Pursuer 15 | . 15 Influence Decreases 377 | . 377 Time Decay 337 | . 337 Lost Part 40 | . 40 Squads Dispatched 5 | . 5 Investigation 3 | . 3 Extermination . | . . Reinforcement 2 | . 2 Assault . | . . Garrison . | . . Intercept . | . . Searches Triggered . | . . Construction Impeded . | . . Haulers Reinforced . | . . Active Scanning Responses . | . . Cargo Convoy Interrupts . | . . Stealth | -11 -10 --------- Run | Yrd Mat Distress Signals 1 | . 1 Communications Jammed . | . . Distress Signals . | . . Times Spotted 41 | . 41 Peak Tracking Total 6 | . 6 Tactical Retreats 1 | . 1 Traps | -11 -10 ------- Run | Yrd Mat Traps Triggered 3 | . 3 Indirectly . | . . Trap Hack Attempts . | . . Triggered . | . . Disarmed . | . . Reprogrammed . | . . Reused . | . . Traps Extracted . | . . Installed . | . . Triggered . | . . Machines | -11 -10 ---------- Run | Yrd Mat Machines Disabled 1 | . 1 Max in Single Turn 1 | . 1 Machines Repaired . | . . Machines Dismantled . | . . Machines Sabotaged . | . . Overloaded Fab Kills . | . . Hacking | -11 -10 --------- Run | Yrd Mat Machines Accessed 4 | . 4 Terminals 3 | . 3 Fabricators . | . . Repair Stations . | . . Recycling Units 1 | . 1 Scanalyzers . | . . Garrison Access . | . . Total Hacks 13 | . 13 Successful 4 | . 4 Failed 9 | . 9 Catastrophic 3 | . 3 Database Lockouts . | . . Manual 6 | . 6 Terminals 11 | . 11 Fabricators . | . . Repair Stations . | . . Recycling Units 2 | . 2 Scanalyzers . | . . Garrison Access . | . . Terminal Hacks 4 | . 4 Record 2 | . 2 Prototype ID Bank 1 | . 1 Branch Access Points 1 | . 1 Fabricator Hacks . | . . Repair Station Hacks . | . . Recycling Unit Hacks . | . . Scanalyzer . | . . Garrison Access Hacks . | . . Unauthorized Hacks . | . . Terminals . | . . Fabricators . | . . Repair Stations . | . . Recycling Units . | . . Scanalyzers . | . . Garrison Access . | . . Data Cores Recovered . | . . Used . | . . Hacking Detections 3 | . 3 Full Trace Events 2 | . 2 Feedback Events . | . . Feedback Blocked . | . . Robot Schematics Acquired . | . . Robots Built . | . . Authchips . | . . Time . | . . Total Robot Build Rating . | . . Part Schematics Acquired . | . . Parts Built . | . . Authchips . | . . Time . | . . Total Part Build Rating . | . . Part Studies Acquired . | . . Parts Repaired . | . . Time . | . . Parts Recycled . | . . Recycled Matter . | . . Retrieved Matter . | . . Retrieved Components . | . . Parts Scanalyzed . | . . Part Schematics Acquired . | . . Parts Damaged . | . . Bothacking | -11 -10 ------------ Run | Yrd Mat Used RIF Installer . | . . Robots Hacked . | . . Non-combat . | . . Combat . | . . Robot Hacks Applied . | . . Relay Couplers Released . | . . Fabnet Peak Effective % . | . . Robots Rewired . | . . Allies Hacked . | . . Hacks Repelled . | . . Allies | -11 -10 -------- Run | Yrd Mat Total Allies . | . . Largest Group . | . . Highest-Rated Group . | . . Highest-Rated Ally . | . . Total Orders . | . . Ally Attacks . | . . Total Damage . | . . Kills . | . . Allies Corrupted . | . . Allies Melted . | . . Intel | -11 -10 ------- Run | Yrd Mat Active Infowar (turns) . | . . Robot Analysis Total . | . . Derelict Logs Recovered . | . . Drone Launches . | . . Drone Recoveries . | . . Exploration | -11 -10 ------------- Run | Yrd Mat Turns Passed 2895 | 82 2813 Spaces Moved 1209 | 58 1151 Core 24 | 21 3 Treads 812 | 37 775 Legs 373 | . 373 Wheels . | . . Hover . | . . Flight . | . . Fastest Speed 50 | 50 160 Average Speed 208 | 120 213 Slowest Speed 550 | 160 550 Overloaded Moves . | . . Propulsion Burnouts . | . . Robots Hopped . | . . Potential Cave-ins . | . . Cave-ins Triggered . | . . Exploration Rate (%) 49 | 3 95 Regions Visited 1 Branch Regions . Pre-discovered Areas . | . . Known Exits Taken . | . . Unknown Exits Taken 1 | 1 . Scrap Searched . | . . Spaces Dug . | . . Terrain Destroyed . | . . Melee . | . . Projectile . | . . AOE . | . . Terrain Rammed . | . . Walls Destroyed . | . . Machines Disabled . | . . Actions | -11 -10 --------- Run | Yrd Mat Total 1405 | 69 1336 Wait 30 | . 30 Move 1208 | 57 1151 Hop . | . . Pick Up 31 | 5 26 Fast Attach 2 | 2 . Attach 17 | 4 13 Detach 1 | . 1 Swap 6 | 1 5 Drop 9 | . 9 Fire 91 | . 91 Melee . | . . Ram . | . . Kick 6 | . 6 Crush 4 | . 4 Escape Stasis . | . . Rewire . | . . Trap . | . . Miscellaneous . | . . Route ------- -11/Scrapyard -10/Materials (discovered 5 exits: [*Mat x3] / *Min x2) History --------- Turn | Location | Event 5 | -11/Scrapyard | Discovered new exit (range 16) 83 | -11/Scrapyard | Entered Materials 321 | -10/Materials | Build established: Mutant 344 | -10/Materials | Discovered new exit (range 14) 504 | -10/Materials | Discovered new exit (range 4) 594 | -10/Materials | Discovered new exit (range 14) 1007 | -10/Materials | Core integrity fell below 50% 1539 | -10/Materials | Discovered new exit (range 5) 1560 | -10/Materials | Identified exit to Mines 1767 | -10/Materials | Discovered new exit (range 7) 2885 | -10/Materials | Core integrity fell below 20% 2896 | -10/Materials | Destroyed by G-34 Mercenary with Small Laser Last Messages --------------- 02614_ O-16 Technician destroyed. 02616_ K-01 Serf collects debris. 02621_ Acquired Hacking Suite. 02622_ Acquired 17 matter. 02624_ K-01 Serf collects debris. 02624_ U-05 Engineer builds a Door. 02628_ K-01 Serf collects debris. 02630_ Acquired 6 matter. 02632_ K-01 Serf collects debris. 02637_ Acquired 6 matter. 02690_ Connecting with Terminal... 02846_ ALERT: Suspicious activity at Terminal M003. Dispatching Investigation squad. 02853_ G-34 Mercenary destroyed. 02874_ Acquired 78 matter. 02879_ Triggered Alarm Trap. 02879_ An alarm sounds. 02879_ ALERT: Alarm triggered, dispatching investigation squad. 02884_ G-34 Mercenary destroyed. Map ----- +----------------------------------------------------+ | | | | | | | | | | | | | | | | | | | | | | | | | | | | | | | ????????????????????#######################??????? | | ????????????????????# # #??????? | | ????????????????????# """ """ # " """"" #??????? | | ????????????????????# "T" """ # """"""""" #??????? | | ????????????????????# """ # """ """ #??????? | | ????????????????????# # #??????? | | ????????????????????# # #??????? | | ????????????????????# # #??????? | | ????????????????????# ! [ ######+######??????? | | ???????????????????######/######### ############ | | ???????????????????# g =@=+ """ # | | ???????????????????#